[Event "Titled Tuesday Blitz February 07 Late 2023"]
[White "Dourerassou, Jonathan"]
[Black "Jenkins, Drake"]
[WhiteFideId "628050"]
[BlackFideId "2022397"]
[WhiteElo "2414"]
[BlackElo "2130"]
[Result "1-0"]
[Round "02"]
[TimeControl "180+2"]
[Date "2023.02.07"]
[WhiteClock "0:01:15"]
[BlackClock "0:00:01"]

1. d4 {[%clk 0:03:00]}  Nf6 {[%clk 0:02:59]} 2. Bg5 {[%clk 0:03:00]}  e6 {[%clk 0:02:58]} 3. e4 {[%clk 0:02:59]}  h6 {[%clk 0:02:57]} 4. Bxf6 {[%clk 0:02:59]}  Qxf6 {[%clk 0:02:57]} 5. Nc3 {[%clk 0:02:59]}  Bb4 {[%clk 0:02:53]} 6. Nf3 {[%clk 0:02:59]}  O-O {[%clk 0:02:51]} 7. Qd2 {[%clk 0:02:56]}  c5 {[%clk 0:02:49]} 8. e5 {[%clk 0:02:51]}  Qe7 {[%clk 0:02:47]} 9. a3 {[%clk 0:02:50]}  Bxc3 {[%clk 0:02:35]} 10. bxc3 {[%clk 0:02:50]}  d6 {[%clk 0:02:35]} 11. Bd3 {[%clk 0:02:48]}  Nc6 {[%clk 0:02:31]} 12. O-O {[%clk 0:02:40]}  b6 {[%clk 0:02:24]} 13. Rfe1 {[%clk 0:02:31]}  Bb7 {[%clk 0:02:24]} 14. Qf4 {[%clk 0:02:29]}  Rad8 {[%clk 0:02:05]} 15. Qe4 {[%clk 0:02:23]}  g6 {[%clk 0:02:00]} 16. Qf4 {[%clk 0:02:23]}  Kg7 {[%clk 0:01:52]} 17. h4 {[%clk 0:02:16]}  cxd4 {[%clk 0:01:27]} 18. cxd4 {[%clk 0:02:15]}  dxe5 {[%clk 0:01:26]} 19. dxe5 {[%clk 0:02:13]}  h5 {[%clk 0:00:45]} 20. Ng5 {[%clk 0:01:55]}  Rd4 {[%clk 0:00:33]} 21. Ne4 {[%clk 0:01:47]}  Na5 {[%clk 0:00:18]} 22. Qe3 {[%clk 0:01:32]}  Rfd8 {[%clk 0:00:17]} 23. Nf6 {[%clk 0:01:25]}  Rxh4 {[%clk 0:00:14]} 24. Qg5 {[%clk 0:01:26]}  Rg4 {[%clk 0:00:06]} 25. Nxh5+ {[%clk 0:01:25]}  Kf8 {[%clk 0:00:04]} 26. Qh6+ {[%clk 0:01:23]}  Ke8 {[%clk 0:00:03]} 27. Nf6+ {[%clk 0:01:19]}  Qxf6 {[%clk 0:00:03]} 28. exf6 {[%clk 0:01:20]}  Rxg2+ {[%clk 0:00:03]} 29. Kf1 {[%clk 0:01:21]}  Kd7 {[%clk 0:00:02]} 30. Be4 {[%clk 0:01:14]}  Bxe4 {[%clk 0:00:01]} 31. Rxe4 {[%clk 0:01:15]} 1-0


[Site "https://www.chess.com"]

[Event "Titled Tuesday Blitz February 07 Late 2023"]
[White "Cueto, Jonny"]
[Black "Starozhilov, Leonid"]
[WhiteFideId "3300145"]
[BlackFideId "14106752"]
[WhiteElo "2122"]
[BlackElo "2313"]
[Result "0-1"]
[Round "02"]
[TimeControl "180+2"]
[Date "2023.02.07"]
[WhiteClock "0:00:02"]
[BlackClock "0:00:31"]

1. d4 {[%clk 0:03:00]}  Nf6 {[%clk 0:02:58]} 2. Bf4 {[%clk 0:02:59]}  g6 {[%clk 0:02:58]} 3. Nc3 {[%clk 0:02:59]}  Bg7 {[%clk 0:02:57]} 4. e4 {[%clk 0:02:59]}  d6 {[%clk 0:02:56]} 5. Qd2 {[%clk 0:02:58]}  h6 {[%clk 0:02:56]} 6. h4 {[%clk 0:02:40]}  c6 {[%clk 0:02:51]} 7. O-O-O {[%clk 0:02:11]}  Qa5 {[%clk 0:02:47]} 8. f3 {[%clk 0:02:00]}  Nbd7 {[%clk 0:02:25]} 9. e5 {[%clk 0:01:40]}  Nh5 {[%clk 0:02:11]} 10. exd6 {[%clk 0:01:34]}  Nxf4 {[%clk 0:01:49]} 11. Qxf4 {[%clk 0:01:33]}  e6 {[%clk 0:01:43]} 12. Bc4 {[%clk 0:01:32]}  O-O {[%clk 0:01:31]} 13. Nge2 {[%clk 0:01:00]}  b5 {[%clk 0:01:30]} 14. Bb3 {[%clk 0:00:55]}  Qb6 {[%clk 0:01:08]} 15. Qg3 {[%clk 0:00:28]}  a5 {[%clk 0:01:02]} 16. a4 {[%clk 0:00:28]}  bxa4 {[%clk 0:00:53]} 17. Nxa4 {[%clk 0:00:27]}  Qb4 {[%clk 0:00:53]} 18. Nf4 {[%clk 0:00:12]}  Qxd6 {[%clk 0:00:42]} 19. Qg4 {[%clk 0:00:07]}  Nf6 {[%clk 0:00:39]} 20. Qg3 {[%clk 0:00:03]}  Nd5 {[%clk 0:00:37]} 21. Qg4 {[%clk 0:00:01]}  Qxf4+ {[%clk 0:00:37]} 22. Qxf4 {[%clk 0:00:02]}  Nxf4 {[%clk 0:00:37]} 23. Nc5 {[%clk 0:00:02]}  Bxd4 {[%clk 0:00:31]} 0-1


[Site "https://www.chess.com"]

[Event "Titled Tuesday Blitz February 07 Late 2023"]
[White "Tobares, Leandro"]
[Black "Fiorito, Joaquin"]
[WhiteFideId "106402"]
[BlackFideId "180173"]
[WhiteElo "2189"]
[BlackElo "2405"]
[Result "0-1"]
[Round "02"]
[TimeControl "180+2"]
[Date "2023.02.07"]
[WhiteClock "0:00:10"]
[BlackClock "0:00:29"]

1. c4 {[%clk 0:02:59]}  Nf6 {[%clk 0:02:59]} 2. Nc3 {[%clk 0:02:58]}  e6 {[%clk 0:02:54]} 3. d4 {[%clk 0:02:53]}  Bb4 {[%clk 0:02:53]} 4. Bd2 {[%clk 0:02:53]}  d5 {[%clk 0:02:42]} 5. e3 {[%clk 0:02:51]}  O-O {[%clk 0:02:39]} 6. Nf3 {[%clk 0:02:51]}  b6 {[%clk 0:02:39]} 7. cxd5 {[%clk 0:02:50]}  exd5 {[%clk 0:02:39]} 8. Bd3 {[%clk 0:02:48]}  Bb7 {[%clk 0:02:37]} 9. Qc2 {[%clk 0:02:44]}  a6 {[%clk 0:02:34]} 10. O-O {[%clk 0:02:39]}  Nbd7 {[%clk 0:02:34]} 11. Ne2 {[%clk 0:02:37]}  Bd6 {[%clk 0:02:33]} 12. Ng3 {[%clk 0:02:34]}  g6 {[%clk 0:02:29]} 13. a3 {[%clk 0:02:27]}  c5 {[%clk 0:02:28]} 14. Bc3 {[%clk 0:02:09]}  Re8 {[%clk 0:02:25]} 15. Rfe1 {[%clk 0:02:08]}  Rc8 {[%clk 0:02:14]} 16. Rad1 {[%clk 0:01:58]}  c4 {[%clk 0:02:11]} 17. Bf1 {[%clk 0:01:57]}  b5 {[%clk 0:02:08]} 18. Bb4 {[%clk 0:01:55]}  Bxb4 {[%clk 0:02:06]} 19. axb4 {[%clk 0:01:55]}  h5 {[%clk 0:02:04]} 20. Ne2 {[%clk 0:01:39]}  Qe7 {[%clk 0:02:01]} 21. Nf4 {[%clk 0:01:37]}  Ne4 {[%clk 0:01:58]} 22. Nd2 {[%clk 0:01:29]}  Qxb4 {[%clk 0:01:50]} 23. f3 {[%clk 0:01:26]}  Nxd2 {[%clk 0:01:47]} 24. Rxd2 {[%clk 0:01:26]}  c3 {[%clk 0:01:43]} 25. bxc3 {[%clk 0:01:20]}  Rxc3 {[%clk 0:01:44]} 26. Qd1 {[%clk 0:01:07]}  Rcxe3 {[%clk 0:01:41]} 27. Rxe3 {[%clk 0:01:05]}  Rxe3 {[%clk 0:01:42]} 28. Rc2 {[%clk 0:00:59]}  Qd6 {[%clk 0:01:14]} 29. Nd3 {[%clk 0:00:58]}  Re8 {[%clk 0:01:10]} 30. Nc5 {[%clk 0:00:50]}  Nxc5 {[%clk 0:01:08]} 31. dxc5 {[%clk 0:00:49]}  Qf6 {[%clk 0:01:09]} 32. Qc1 {[%clk 0:00:37]}  Bc6 {[%clk 0:01:08]} 33. Qa3 {[%clk 0:00:36]}  Qd4+ {[%clk 0:01:04]} 34. Rf2 {[%clk 0:00:32]}  Re1 {[%clk 0:01:02]} 35. g3 {[%clk 0:00:23]}  Ra1 {[%clk 0:00:42]} 36. Qb3 {[%clk 0:00:21]}  a5 {[%clk 0:00:38]} 37. Kg2 {[%clk 0:00:18]}  a4 {[%clk 0:00:38]} 38. Qc2 {[%clk 0:00:16]}  b4 {[%clk 0:00:37]} 39. Rd2 {[%clk 0:00:16]}  Qc3 {[%clk 0:00:37]} 40. Qxc3 {[%clk 0:00:14]}  bxc3 {[%clk 0:00:37]} 41. Rc2 {[%clk 0:00:13]}  d4 {[%clk 0:00:37]} 42. Bd3 {[%clk 0:00:13]}  a3 {[%clk 0:00:36]} 43. Kf2 {[%clk 0:00:14]}  Rb1 {[%clk 0:00:33]} 44. Bc4 {[%clk 0:00:13]}  Rb2 {[%clk 0:00:32]} 45. Rxb2 {[%clk 0:00:10]}  axb2 {[%clk 0:00:31]} 46. Bd3 {[%clk 0:00:10]}  Kf8 {[%clk 0:00:29]} 0-1


[Site "https://www.chess.com"]

[Event "Titled Tuesday Blitz February 07 Late 2023"]
[White "Taspinar, Yanki"]
[Black "Clawitter, Craig"]
[WhiteFideId "34561188"]
[BlackFideId "2023105"]
[WhiteElo "2262"]
[BlackElo "2050"]
[Result "1-0"]
[Round "02"]
[TimeControl "180+2"]
[Date "2023.02.07"]
[WhiteClock "0:00:39"]
[BlackClock "0:00:09"]

1. Nf3 {[%clk 0:03:00]}  Nf6 {[%clk 0:02:57]} 2. g3 {[%clk 0:03:01]}  d6 {[%clk 0:02:57]} 3. Bg2 {[%clk 0:03:01]}  g6 {[%clk 0:02:58]} 4. O-O {[%clk 0:03:00]}  Bg7 {[%clk 0:02:58]} 5. d4 {[%clk 0:03:00]}  O-O {[%clk 0:02:58]} 6. b3 {[%clk 0:03:00]}  c5 {[%clk 0:02:58]} 7. Bb2 {[%clk 0:03:00]}  Nc6 {[%clk 0:02:54]} 8. c4 {[%clk 0:02:59]}  cxd4 {[%clk 0:02:52]} 9. Nxd4 {[%clk 0:03:00]}  Bd7 {[%clk 0:02:52]} 10. Nc3 {[%clk 0:02:58]}  Qa5 {[%clk 0:02:51]} 11. Rc1 {[%clk 0:02:50]}  Rfc8 {[%clk 0:02:47]} 12. Qd2 {[%clk 0:02:39]}  Qh5 {[%clk 0:02:19]} 13. Nf3 {[%clk 0:02:25]}  Bh3 {[%clk 0:02:17]} 14. Rfd1 {[%clk 0:02:20]}  Bxg2 {[%clk 0:02:15]} 15. Kxg2 {[%clk 0:02:21]}  Ng4 {[%clk 0:02:09]} 16. Nd5 {[%clk 0:02:16]}  Bxb2 {[%clk 0:01:24]} 17. Qxb2 {[%clk 0:02:17]}  Nge5 {[%clk 0:01:03]} 18. Nxe5 {[%clk 0:02:16]}  Qxe5 {[%clk 0:01:03]} 19. Qxe5 {[%clk 0:02:12]}  dxe5 {[%clk 0:01:04]} 20. Rd2 {[%clk 0:02:12]}  e6 {[%clk 0:00:52]} 21. Nc3 {[%clk 0:02:05]}  Rd8 {[%clk 0:00:51]} 22. Rcd1 {[%clk 0:02:06]}  Rxd2 {[%clk 0:00:42]} 23. Rxd2 {[%clk 0:02:06]}  Rd8 {[%clk 0:00:42]} 24. Rxd8+ {[%clk 0:01:54]}  Nxd8 {[%clk 0:00:43]} 25. Kf3 {[%clk 0:01:55]}  f6 {[%clk 0:00:42]} 26. Nb5 {[%clk 0:01:52]}  a6 {[%clk 0:00:37]} 27. Nd6 {[%clk 0:01:52]}  Kf8 {[%clk 0:00:37]} 28. g4 {[%clk 0:01:37]}  Ke7 {[%clk 0:00:37]} 29. Ne4 {[%clk 0:01:38]}  Nf7 {[%clk 0:00:32]} 30. h3 {[%clk 0:01:27]}  f5 {[%clk 0:00:24]} 31. Nc5 {[%clk 0:01:25]}  Nd6 {[%clk 0:00:25]} 32. g5 {[%clk 0:01:18]}  a5 {[%clk 0:00:20]} 33. h4 {[%clk 0:01:16]}  b6 {[%clk 0:00:20]} 34. Na4 {[%clk 0:01:15]}  Nc8 {[%clk 0:00:19]} 35. Ke3 {[%clk 0:01:13]}  Kd6 {[%clk 0:00:19]} 36. Kd3 {[%clk 0:01:05]}  Kc6 {[%clk 0:00:19]} 37. Nc3 {[%clk 0:00:55]}  Nd6 {[%clk 0:00:20]} 38. f3 {[%clk 0:00:56]}  b5 {[%clk 0:00:18]} 39. Nxb5 {[%clk 0:00:47]}  Nxb5 {[%clk 0:00:18]} 40. cxb5+ {[%clk 0:00:48]}  Kxb5 {[%clk 0:00:19]} 41. a3 {[%clk 0:00:43]}  Kc5 {[%clk 0:00:16]} 42. Kc3 {[%clk 0:00:42]}  e4 {[%clk 0:00:15]} 43. fxe4 {[%clk 0:00:41]}  fxe4 {[%clk 0:00:10]} 44. e3 {[%clk 0:00:39]}  Kd5 {[%clk 0:00:09]} 45. b4 {[%clk 0:00:39]}  axb4+ {[%clk 0:00:09]} 46. Kxb4 {[%clk 0:00:39]}  Ke5 {[%clk 0:00:05]} 47. a4 {[%clk 0:00:39]}  Kf5 {[%clk 0:00:06]} 48. a5 {[%clk 0:00:39]}  Kg4 {[%clk 0:00:07]} 49. a6 {[%clk 0:00:40]}  Kf3 {[%clk 0:00:08]} 50. a7 {[%clk 0:00:40]}  Kxe3 {[%clk 0:00:08]} 51. a8=Q {[%clk 0:00:40]}  Kd2 {[%clk 0:00:09]} 52. Qxe4 {[%clk 0:00:39]} 1-0


[Site "https://www.chess.com"]

[Event "Titled Tuesday Blitz February 07 Late 2023"]
[White "Zhang, Alan"]
[Black "Tatarinov, Dmitry"]
[WhiteFideId "30936870"]
[BlackFideId "24160067"]
[WhiteElo "2001"]
[BlackElo "2310"]
[Result "0-1"]
[Round "02"]
[TimeControl "180+2"]
[Date "2023.02.07"]
[WhiteClock "0:00:08"]
[BlackClock "0:01:34"]

1. e4 {[%clk 0:03:00]}  e5 {[%clk 0:02:59]} 2. Nf3 {[%clk 0:03:01]}  Nc6 {[%clk 0:02:59]} 3. Bb5 {[%clk 0:03:02]}  g6 {[%clk 0:03:00]} 4. c3 {[%clk 0:03:00]}  Bg7 {[%clk 0:03:00]} 5. O-O {[%clk 0:03:01]}  a6 {[%clk 0:02:59]} 6. Ba4 {[%clk 0:03:00]}  Nf6 {[%clk 0:02:58]} 7. Re1 {[%clk 0:03:00]}  b5 {[%clk 0:02:53]} 8. Bc2 {[%clk 0:02:59]}  O-O {[%clk 0:02:53]} 9. d4 {[%clk 0:02:57]}  d6 {[%clk 0:02:54]} 10. h3 {[%clk 0:02:56]}  Bb7 {[%clk 0:02:52]} 11. d5 {[%clk 0:02:56]}  Nb8 {[%clk 0:02:52]} 12. b3 {[%clk 0:02:56]}  c6 {[%clk 0:02:53]} 13. c4 {[%clk 0:02:57]}  Nbd7 {[%clk 0:02:53]} 14. Be3 {[%clk 0:02:54]}  Nb6 {[%clk 0:02:51]} 15. Nbd2 {[%clk 0:02:55]}  cxd5 {[%clk 0:02:50]} 16. cxd5 {[%clk 0:02:54]}  Nbxd5 {[%clk 0:02:50]} 17. exd5 {[%clk 0:02:54]}  Nxd5 {[%clk 0:02:51]} 18. Be4 {[%clk 0:02:41]}  Nc3 {[%clk 0:02:49]} 19. Qc2 {[%clk 0:02:42]}  Nxe4 {[%clk 0:02:48]} 20. Nxe4 {[%clk 0:02:41]}  f5 {[%clk 0:02:41]} 21. Nc3 {[%clk 0:01:12]}  d5 {[%clk 0:02:39]} 22. Bc5 {[%clk 0:00:59]}  Re8 {[%clk 0:02:38]} 23. Rad1 {[%clk 0:00:55]}  d4 {[%clk 0:02:38]} 24. b4 {[%clk 0:00:51]}  h6 {[%clk 0:02:35]} 25. Qb3+ {[%clk 0:00:50]}  Kh7 {[%clk 0:02:36]} 26. Ne2 {[%clk 0:00:48]}  Bd5 {[%clk 0:02:33]} 27. Qa3 {[%clk 0:00:47]}  Qd7 {[%clk 0:02:32]} 28. Nexd4 {[%clk 0:00:43]}  exd4 {[%clk 0:02:31]} 29. Nxd4 {[%clk 0:00:44]}  Rxe1+ {[%clk 0:02:30]} 30. Rxe1 {[%clk 0:00:45]}  Qb7 {[%clk 0:02:28]} 31. Qg3 {[%clk 0:00:44]}  Rd8 {[%clk 0:02:24]} 32. Re7 {[%clk 0:00:43]}  Rd7 {[%clk 0:02:24]} 33. Nxf5 {[%clk 0:00:37]}  Rxe7 {[%clk 0:02:18]} 34. Nxe7 {[%clk 0:00:38]}  Be4 {[%clk 0:02:11]} 35. f3 {[%clk 0:00:35]}  Bb1 {[%clk 0:02:10]} 36. Qd6 {[%clk 0:00:34]}  Qa8 {[%clk 0:01:59]} 37. Qe6 {[%clk 0:00:32]}  Qe8 {[%clk 0:01:56]} 38. Qxa6 {[%clk 0:00:26]}  Qd7 {[%clk 0:01:52]} 39. Bd6 {[%clk 0:00:20]}  Qe6 {[%clk 0:01:50]} 40. Qb6 {[%clk 0:00:16]}  Qe1+ {[%clk 0:01:46]} 41. Kh2 {[%clk 0:00:15]}  Be5+ {[%clk 0:01:46]} 42. f4 {[%clk 0:00:14]}  Bg7 {[%clk 0:01:40]} 43. Be5 {[%clk 0:00:12]}  Bxe5 {[%clk 0:01:34]} 44. fxe5 {[%clk 0:00:08]}  Qxe5+ {[%clk 0:01:35]} 45. Kg1 {[%clk 0:00:08]}  Qxe7 {[%clk 0:01:35]} 46. Qxb5 {[%clk 0:00:09]}  Bxa2 {[%clk 0:01:34]} 47. Qc4 {[%clk 0:00:08]}  Bxc4 {[%clk 0:01:34]} 0-1


[Site "https://www.chess.com"]

[Event "Titled Tuesday Blitz February 07 Late 2023"]
[White "Bongo Akanga Ndjila, Barthelemy"]
[Black "UnknownMagician"]
[WhiteFideId "10609431"]
[WhiteElo "1824"]
[BlackElo "2696"]
[Result "0-1"]
[Round "02"]
[TimeControl "180+2"]
[Date "2023.02.07"]
[WhiteClock "0:00:48"]
[BlackClock "0:01:36"]

1. d4 {[%clk 0:02:51]}  d5 {[%clk 0:02:59]} 2. c4 {[%clk 0:02:51]}  c6 {[%clk 0:02:59]} 3. Qc2 {[%clk 0:02:50]}  g6 {[%clk 0:02:57]} 4. e3 {[%clk 0:02:49]}  Bf5 {[%clk 0:02:57]} 5. Bd3 {[%clk 0:02:50]}  Bxd3 {[%clk 0:02:57]} 6. Qxd3 {[%clk 0:02:51]}  Nf6 {[%clk 0:02:58]} 7. Nf3 {[%clk 0:02:51]}  Bg7 {[%clk 0:02:58]} 8. Nbd2 {[%clk 0:02:51]}  O-O {[%clk 0:02:58]} 9. b3 {[%clk 0:02:51]}  c5 {[%clk 0:02:57]} 10. Bb2 {[%clk 0:02:51]}  Nc6 {[%clk 0:02:54]} 11. a3 {[%clk 0:02:48]}  cxd4 {[%clk 0:02:50]} 12. exd4 {[%clk 0:02:44]}  dxc4 {[%clk 0:02:46]} 13. bxc4 {[%clk 0:02:40]}  e6 {[%clk 0:02:41]} 14. O-O {[%clk 0:02:38]}  Rc8 {[%clk 0:02:40]} 15. Rfe1 {[%clk 0:02:33]}  Re8 {[%clk 0:02:33]} 16. Rad1 {[%clk 0:02:30]}  Na5 {[%clk 0:02:28]} 17. d5 {[%clk 0:02:15]}  exd5 {[%clk 0:02:12]} 18. Rxe8+ {[%clk 0:02:15]}  Nxe8 {[%clk 0:02:08]} 19. Bxg7 {[%clk 0:02:14]}  Kxg7 {[%clk 0:02:08]} 20. cxd5 {[%clk 0:02:14]}  Nd6 {[%clk 0:02:06]} 21. Qd4+ {[%clk 0:02:11]}  Qf6 {[%clk 0:02:05]} 22. Ne5 {[%clk 0:02:09]}  b6 {[%clk 0:02:01]} 23. Ndf3 {[%clk 0:02:08]}  Nac4 {[%clk 0:02:00]} 24. Nxc4 {[%clk 0:02:06]}  Rxc4 {[%clk 0:02:00]} 25. Qxf6+ {[%clk 0:02:05]}  Kxf6 {[%clk 0:02:00]} 26. Nd4 {[%clk 0:01:54]}  Rc3 {[%clk 0:01:59]} 27. a4 {[%clk 0:01:44]}  Ra3 {[%clk 0:01:59]} 28. h4 {[%clk 0:01:41]}  Rxa4 {[%clk 0:01:58]} 29. Rd3 {[%clk 0:01:41]}  h6 {[%clk 0:01:45]} 30. g4 {[%clk 0:01:33]}  b5 {[%clk 0:01:43]} 31. Rf3+ {[%clk 0:01:28]}  Ke5 {[%clk 0:01:43]} 32. Nc6+ {[%clk 0:01:16]}  Kxd5 {[%clk 0:01:43]} 33. Nd8 {[%clk 0:01:13]}  Rxg4+ {[%clk 0:01:38]} 34. Kf1 {[%clk 0:01:12]}  Rxh4 {[%clk 0:01:37]} 35. Nxf7 {[%clk 0:01:10]}  Nxf7 {[%clk 0:01:38]} 36. Rxf7 {[%clk 0:01:10]}  a5 {[%clk 0:01:37]} 37. Rf6 {[%clk 0:01:10]}  Rg4 {[%clk 0:01:37]} 38. f3 {[%clk 0:01:09]}  Rg5 {[%clk 0:01:37]} 39. Ke2 {[%clk 0:01:08]}  a4 {[%clk 0:01:37]} 40. Rb6 {[%clk 0:01:07]}  Kc5 {[%clk 0:01:36]} 41. Rb8 {[%clk 0:01:06]}  a3 {[%clk 0:01:37]} 42. Rc8+ {[%clk 0:01:05]}  Kb4 {[%clk 0:01:37]} 43. Kd3 {[%clk 0:01:03]}  a2 {[%clk 0:01:35]} 44. Ra8 {[%clk 0:01:03]}  Kb3 {[%clk 0:01:36]} 45. f4 {[%clk 0:00:58]}  Rd5+ {[%clk 0:01:35]} 46. Ke4 {[%clk 0:00:57]}  Rc5 {[%clk 0:01:36]} 47. Kd4 {[%clk 0:00:57]}  Rc1 {[%clk 0:01:36]} 48. Ra5 {[%clk 0:00:54]}  b4 {[%clk 0:01:35]} 49. Ke5 {[%clk 0:00:53]}  a1=Q+ {[%clk 0:01:35]} 50. Rxa1 {[%clk 0:00:48]}  Rxa1 {[%clk 0:01:36]} 0-1


[Site "https://www.chess.com"]

[Event "Titled Tuesday Blitz February 07 Late 2023"]
[White "Maksimovic, Bojan"]
[Black "Curtis, John"]
[WhiteFideId "14408120"]
[BlackFideId "3200256"]
[WhiteElo "2486"]
[BlackElo "2292"]
[Result "1-0"]
[Round "02"]
[TimeControl "180+2"]
[Date "2023.02.07"]
[WhiteClock "0:00:27"]
[BlackClock "0:00:17"]

1. e4 {[%clk 0:03:00]}  e5 {[%clk 0:02:58]} 2. Nf3 {[%clk 0:03:01]}  Nc6 {[%clk 0:02:57]} 3. Bb5 {[%clk 0:03:01]}  Nf6 {[%clk 0:02:55]} 4. O-O {[%clk 0:03:01]}  Nxe4 {[%clk 0:02:50]} 5. Re1 {[%clk 0:03:01]}  Nd6 {[%clk 0:02:50]} 6. Nxe5 {[%clk 0:03:02]}  Be7 {[%clk 0:02:46]} 7. Bf1 {[%clk 0:03:02]}  Nxe5 {[%clk 0:02:44]} 8. Rxe5 {[%clk 0:03:03]}  O-O {[%clk 0:02:43]} 9. d4 {[%clk 0:03:04]}  Bf6 {[%clk 0:02:43]} 10. Re1 {[%clk 0:03:04]}  Re8 {[%clk 0:02:29]} 11. Rxe8+ {[%clk 0:03:04]}  Nxe8 {[%clk 0:02:29]} 12. c3 {[%clk 0:03:04]}  d5 {[%clk 0:02:29]} 13. Bf4 {[%clk 0:03:05]}  Bf5 {[%clk 0:02:21]} 14. Qb3 {[%clk 0:03:04]}  Rb8 {[%clk 0:02:16]} 15. Nd2 {[%clk 0:03:03]}  Be7 {[%clk 0:01:59]} 16. Re1 {[%clk 0:02:58]}  Be6 {[%clk 0:01:56]} 17. Nf3 {[%clk 0:02:08]}  Bd6 {[%clk 0:01:39]} 18. Bg3 {[%clk 0:02:08]}  Bxg3 {[%clk 0:01:38]} 19. hxg3 {[%clk 0:02:08]}  h6 {[%clk 0:01:32]} 20. Bd3 {[%clk 0:02:08]}  Nd6 {[%clk 0:01:29]} 21. Ne5 {[%clk 0:02:06]}  c6 {[%clk 0:01:21]} 22. Qd1 {[%clk 0:01:50]}  Qf8 {[%clk 0:01:20]} 23. g4 {[%clk 0:01:40]}  Re8 {[%clk 0:01:19]} 24. Bc2 {[%clk 0:01:40]}  Nc4 {[%clk 0:01:16]} 25. Qd3 {[%clk 0:01:27]}  g6 {[%clk 0:00:51]} 26. Nxg6 {[%clk 0:01:26]}  Qg7 {[%clk 0:00:48]} 27. Nf4 {[%clk 0:01:14]}  Nxb2 {[%clk 0:00:47]} 28. Qf3 {[%clk 0:01:15]}  Rf8 {[%clk 0:00:41]} 29. Nh5 {[%clk 0:01:15]}  Qg5 {[%clk 0:00:36]} 30. Qe2 {[%clk 0:00:57]}  Kh8 {[%clk 0:00:26]} 31. f4 {[%clk 0:00:45]}  Qxg4 {[%clk 0:00:20]} 32. Qe5+ {[%clk 0:00:45]}  f6 {[%clk 0:00:19]} 33. Qxe6 {[%clk 0:00:26]}  Qxh5 {[%clk 0:00:18]} 34. Qd7 {[%clk 0:00:27]}  Qf7 {[%clk 0:00:17]} 35. Re7 {[%clk 0:00:27]} 1-0


[Site "https://www.chess.com"]

[Event "Titled Tuesday Blitz February 07 Late 2023"]
[White "Manu_ChessExcelsior"]
[Black "Perske, Thore"]
[BlackFideId "12902195"]
[WhiteElo "1881"]
[BlackElo "2448"]
[Result "0-1"]
[Round "02"]
[TimeControl "180+2"]
[Date "2023.02.07"]
[WhiteClock "0:00:06"]
[BlackClock "0:01:10"]

1. e4 {[%clk 0:03:00]}  e6 {[%clk 0:02:59]} 2. d4 {[%clk 0:02:59]}  d5 {[%clk 0:02:59]} 3. e5 {[%clk 0:02:59]}  c5 {[%clk 0:02:59]} 4. c3 {[%clk 0:02:58]}  Qb6 {[%clk 0:02:59]} 5. Nf3 {[%clk 0:02:54]}  Bd7 {[%clk 0:02:59]} 6. Be2 {[%clk 0:02:42]}  Bb5 {[%clk 0:02:58]} 7. O-O {[%clk 0:02:25]}  Bxe2 {[%clk 0:02:57]} 8. Qxe2 {[%clk 0:02:21]}  Qa6 {[%clk 0:02:57]} 9. Qd2 {[%clk 0:01:50]}  Nc6 {[%clk 0:02:54]} 10. Na3 {[%clk 0:01:35]}  cxd4 {[%clk 0:02:45]} 11. cxd4 {[%clk 0:01:31]}  Bxa3 {[%clk 0:02:45]} 12. bxa3 {[%clk 0:01:32]}  Nge7 {[%clk 0:02:45]} 13. Bb2 {[%clk 0:01:31]}  O-O {[%clk 0:02:43]} 14. Rfc1 {[%clk 0:01:29]}  Rac8 {[%clk 0:02:43]} 15. Rc2 {[%clk 0:01:20]}  Na5 {[%clk 0:02:39]} 16. Rxc8 {[%clk 0:01:14]}  Rxc8 {[%clk 0:02:40]} 17. Qb4 {[%clk 0:01:15]}  Nec6 {[%clk 0:02:33]} 18. Qd2 {[%clk 0:00:50]}  Nc4 {[%clk 0:02:32]} 19. Qe2 {[%clk 0:00:48]}  h6 {[%clk 0:02:27]} 20. Rb1 {[%clk 0:00:42]}  Qb5 {[%clk 0:02:22]} 21. Qc2 {[%clk 0:00:39]}  Qa5 {[%clk 0:02:13]} 22. Bc1 {[%clk 0:00:37]}  b6 {[%clk 0:02:08]} 23. a4 {[%clk 0:00:36]}  Nb4 {[%clk 0:01:58]} 24. Qb3 {[%clk 0:00:34]}  Nc6 {[%clk 0:01:52]} 25. Be3 {[%clk 0:00:32]}  Ne7 {[%clk 0:01:45]} 26. Qb5 {[%clk 0:00:26]}  Qxb5 {[%clk 0:01:42]} 27. axb5 {[%clk 0:00:26]}  Nxe3 {[%clk 0:01:22]} 28. fxe3 {[%clk 0:00:25]}  Rc2 {[%clk 0:01:22]} 29. Ne1 {[%clk 0:00:19]}  Rxa2 {[%clk 0:01:21]} 30. Rc1 {[%clk 0:00:20]}  Nf5 {[%clk 0:01:21]} 31. Rc8+ {[%clk 0:00:17]}  Kh7 {[%clk 0:01:21]} 32. Rc7 {[%clk 0:00:17]}  Kg6 {[%clk 0:01:18]} 33. Nf3 {[%clk 0:00:14]}  Nxe3 {[%clk 0:01:13]} 34. Nh4+ {[%clk 0:00:13]}  Kh5 {[%clk 0:01:13]} 35. g3 {[%clk 0:00:14]}  g5 {[%clk 0:01:11]} 36. Rxf7 {[%clk 0:00:09]}  gxh4 {[%clk 0:01:11]} 37. g4+ {[%clk 0:00:07]}  Kxg4 {[%clk 0:01:09]} 38. Rg7+ {[%clk 0:00:07]}  Kf3 {[%clk 0:01:09]} 39. Rf7+ {[%clk 0:00:06]}  Ke4 {[%clk 0:01:10]} 0-1


[Site "https://www.chess.com"]

[Event "Titled Tuesday Blitz February 07 Late 2023"]
[White "Gurevich, Ilya"]
[Black "Carlsen, Magnus"]
[WhiteFideId "2000628"]
[BlackFideId "1503014"]
[WhiteElo "2586"]
[BlackElo "2853"]
[Result "0-1"]
[Round "02"]
[TimeControl "180+2"]
[Date "2023.02.07"]
[WhiteClock "0:00:19"]
[BlackClock "0:01:04"]

1. d4 {[%clk 0:03:00]}  Na6 {[%clk 0:03:00]} 2. c4 {[%clk 0:03:00]}  Nh6 {[%clk 0:03:00]} 3. Nc3 {[%clk 0:02:56]}  e5 {[%clk 0:03:00]} 4. dxe5 {[%clk 0:02:54]}  d6 {[%clk 0:02:59]} 5. Nf3 {[%clk 0:02:51]}  Be6 {[%clk 0:02:59]} 6. Bg5 {[%clk 0:02:44]}  Qd7 {[%clk 0:02:58]} 7. e3 {[%clk 0:02:41]}  Ng4 {[%clk 0:02:57]} 8. exd6 {[%clk 0:02:35]}  Bxd6 {[%clk 0:02:58]} 9. h3 {[%clk 0:02:33]}  Nf6 {[%clk 0:02:58]} 10. Bxf6 {[%clk 0:02:32]}  gxf6 {[%clk 0:02:59]} 11. Nd5 {[%clk 0:02:11]}  O-O-O {[%clk 0:02:54]} 12. Be2 {[%clk 0:01:42]}  c6 {[%clk 0:02:50]} 13. Nc3 {[%clk 0:01:39]}  Rhg8 {[%clk 0:02:50]} 14. Kf1 {[%clk 0:01:28]}  Qe7 {[%clk 0:02:43]} 15. Qa4 {[%clk 0:01:23]}  Kb8 {[%clk 0:02:38]} 16. a3 {[%clk 0:01:20]}  Be5 {[%clk 0:02:20]} 17. Nxe5 {[%clk 0:01:10]}  fxe5 {[%clk 0:02:20]} 18. b4 {[%clk 0:01:08]}  Qg5 {[%clk 0:02:13]} 19. Bf3 {[%clk 0:01:06]}  f5 {[%clk 0:02:11]} 20. g3 {[%clk 0:00:59]}  Bxc4+ {[%clk 0:02:07]} 21. Kg2 {[%clk 0:00:57]}  Rd2 {[%clk 0:02:06]} 22. Kg1 {[%clk 0:00:40]}  Nc5 {[%clk 0:01:26]} 23. bxc5 {[%clk 0:00:32]}  Qxg3+ {[%clk 0:01:21]} 24. fxg3 {[%clk 0:00:19]}  Rxg3+ {[%clk 0:01:19]} 25. Bg2 {[%clk 0:00:19]}  Rgxg2# {[%clk 0:01:04]} 0-1


[Site "https://www.chess.com"]